bitfinex-derivatives/quotes_SOLF0:USTF0_20240904
["timestamp","ask_amount","ask_price","bid_price","bid_amount"]
[1725465110532,3.755,133.15,133.11,3.756]
[1725465110730,0.05255905,133.13,133.11,3.756]
[1725465110937,0.05255905,133.13,133.1,0.0574863]
[1725465111441,3.756,133.12,133.1,0.0574863]
[1725465111638,3.76540814,133.11,133.1,0.0574863]
[1725465112040,0.05255905,133.13,133.1,0.0574863]
[1725465112232,3.82942662,133.13,133.1,0.0574863]
[1725465112439,0.05255905,133.13,133.1,0.0574863]
[1725465112637,3.7559,133.12,133.1,0.0574863]
[1725465112840,3.81218998,133.11,133.1,0.0574863]
[1725465113042,0.05255905,133.13,133.1,0.0574863]
[1725465113242,3.7559,133.12,133.1,0.0574863]
[1725465113443,3.84859091,133.13,133.1,0.0574863]
[1725465113640,3.7571,133.08,133.04,2.4661]
[1725465113839,3.82985119,133.07,133.04,3.758]
[1725465114041,25.96,133.11,133.04,3.758]
[1725465114541,3.67127611,133.11,133.05,3.7577]
[1725465114743,0.04865716,133.09,133.07,0.05193395]
[1725465114953,3.81350008,133.09,133.07,0.05193395]
[1725465115240,0.04865716,133.09,133.07,0.05193395]
[1725465115640,3.87814937,133.09,133.07,0.05193395]
[1725465117341,7.63494937,133.09,133.07,0.05193395]
[1725465118054,3.87814937,133.09,133.07,0.05193395]
[1725465118349,0.04865716,133.09,133.07,0.05193395]
[1725465119847,3.80535716,133.09,133.07,0.05193395]
[1725465120539,3.7569,133.08,133.07,0.05193395]
[1725465122144,3.80545716,133.09,133.07,0.05193395]
[1725465122347,0.04865716,133.09,133.07,0.05193395]
[1725465122649,0.04865716,133.09,133.08,3.7569]
[1725465123144,0.04865716,133.09,133.07,0.05193395]
[1725465123743,0.04865716,133.09,133.07,3.80903395]
[1725465124146,0.04865716,133.09,133.07,0.05193395]
[1725465124448,3.7556,133.13,133.05,21.64]
[1725465124642,7.52185817,133.13,133.05,21.64]
[1725465124837,3.7553,133.14,133.11,3.7558]
[1725465125042,21.64,133.19,133.08,2.422]
[1725465125245,0.05396792,133.15,133.12,0.04746266]
[1725465125448,3.7555,133.13,133.12,0.04746266]
[1725465125641,0.05396792,133.15,133.12,0.04746266]
[1725465125950,3.7555,133.13,133.12,0.04746266]
[1725465126248,3.67578535,133.14,133.12,0.04746266]
[1725465126646,0.05396792,133.15,133.12,0.04746266]
[1725465127049,7.53903144,133.14,133.12,0.04746266]
[1725465127242,3.7554,133.14,133.12,0.04746266]
[1725465127450,3.80906792,133.15,133.12,3.80316266]
[1725465128348,3.75197234,133.14,133.12,3.80316266]
[1725465128645,3.75197234,133.14,133.13,3.7555]
[1725465128949,3.75197234,133.14,133.12,0.04746266]
[1725465129549,3.75197234,133.14,133.12,3.80306266]
[1725465129748,3.80906792,133.15,133.12,3.80306266]
[1725465129946,7.46003596,133.14,133.12,0.04746266]
[1725465130142,3.7554,133.14,133.12,0.04746266]
[1725465130345,0.05396792,133.15,133.12,0.04746266]
[1725465130652,3.69870735,133.21,133.12,21.64]
[1725465130653,3.7539,133.19,133.12,21.64]
[1725465130864,3.7539,133.19,133.13,2.3539]
[1725465131348,3.7536,133.2,133.13,2.3539]
[1725465131653,0.05278284,133.18,133.15,0.05680616]
[1725465132060,3.72256817,133.25,133.15,0.05680616]
[1725465132254,4.5722,133.27,133.16,21.64]
[1725465132455,3.67112379,133.27,133.17,2.382]
[1725465132649,21.64,133.29,133.17,6.10044951]
[1725465132861,3.7522,133.25,133.21,3.7532]
[1725465133156,3.6745042,133.29,133.17,6.10044951]
[1725465133157,25.3145042,133.29,133.17,6.10044951]
[1725465133459,25.3145042,133.29,133.22,0.05366545]
[1725465133460,3.83976862,133.29,133.22,0.05366545]
[1725465133747,26.4187,133.32,133.22,2.47246545]
[1725465133948,3.7517,133.27,133.26,0.05595709]
[1725465134158,3.73835637,133.32,133.26,0.05595709]
[1725465134544,3.7505,133.31,133.26,0.05595709]
[1725465134748,23.8881,133.34,133.26,0.05595709]
[1725465135056,27.58265909,133.34,133.25,3.7521]
[1725465135257,27.58265909,133.34,133.29,0.05010912]
[1725465135455,21.64,133.32,133.22,2.4188]
[1725465135646,5.94265909,133.34,133.16,21.64]
[1725465135647,21.64,133.27,133.16,21.64]
[1725465135955,25.4824015,133.27,133.18,2.3267]
[1725465136560,0.0529305,133.24,133.21,0.04759649]
[1725465137263,3.8055305,133.24,133.21,0.04759649]
[1725465137957,3.7527,133.23,133.21,0.04759649]
[1725465138168,0.0529305,133.24,133.21,0.04759649]
[1725465141665,3.7528,133.23,133.21,0.04759649]
[1725465142268,3.753,133.22,133.21,0.04759649]
[1725465142872,3.7528,133.23,133.21,0.04759649]
[1725465143168,0.0529305,133.24,133.21,0.04759649]
[1725465143375,0.0529305,133.24,133.22,3.81992284]
[1725465143565,0.0529305,133.24,133.23,3.7527]
[1725465144276,2.4649,133.37,133.23,25.94]
[1725465144469,2.4649,133.37,133.26,25.94]
[1725465144779,3.7493,133.35,133.31,3.7503]
[1725465145168,2.4649,133.37,133.32,0.0475852]
[1725465145578,4.746,133.4,133.32,0.0475852]
[1725465145969,3.7487,133.38,133.33,3.7498]
[1725465146169,3.7487,133.38,133.34,0.04827329]
[1725465146372,3.7484,133.39,133.34,3.79767329]
[1725465146771,4.746,133.4,133.34,0.04827329]
[1725465147177,3.7485,133.38,133.34,0.04827329]
[1725465147780,30.686,133.4,133.34,0.04827329]
[1725465148168,3.7487,133.38,133.34,0.04827329]
[1725465148374,30.686,133.4,133.34,0.04827329]
[1725465149669,4.746,133.4,133.34,0.04827329]
[1725465150575,4.746,133.4,133.36,3.7489]
[1725465150875,4.746,133.4,133.34,0.04827329]
[1725465151580,3.75750976,133.41,133.34,0.04827329]
[1725465151885,3.7474,133.42,133.37,3.7485]
[1725465152073,3.7474,133.42,133.32,25.94]
[1725465152074,3.7474,133.42,133.38,0.04801097]
[1725465152275,8.33379382,133.44,133.38,0.04801097]
[1725465153173,3.74859382,133.44,133.38,0.04801097]
[1725465153370,252.94,133.47,133.38,0.04801097]
[1725465153571,0.36413137,133.46,133.41,0.05335167]
[1725465153779,0.36413137,133.46,133.42,0.05544403]
[1725465154082,0.36413137,133.46,133.32,25.94]
[1725465154276,3.72797037,133.47,133.35,25.94]
[1725465154485,3.7465,133.45,133.36,7.011]
[1725465154686,3.72797037,133.47,133.37,3.75806209]
[1725465154980,0.364842,133.45,133.36,7.011]
[1725465155181,0.04976862,133.43,133.41,0.05706795]
[1725465155381,3.80123701,133.43,133.41,0.05706795]
[1725465155584,3.7473,133.42,133.41,0.05706795]
[1725465155778,3.80123701,133.43,133.41,0.05706795]
[1725465155974,3.7475,133.42,133.37,3.7487]
[1725465156176,25.94,133.46,133.33,7.1984]
[1725465156479,0.36515632,133.45,133.33,7.1984]
[1725465156684,10.8296418,133.5,133.36,3.749]
[1725465156985,25.94,133.45,133.33,7.1984]
[1725465157174,0.0555629,133.4,133.38,0.05158824]
[1725465157376,3.87842768,133.4,133.38,0.04806439]
[1725465157575,0.04779462,133.4,133.38,0.04806439]
[1725465158186,3.7482,133.39,133.38,0.04806439]
[1725465158377,0.04779462,133.4,133.26,25.94]
[1725465158576,25.94,133.38,133.26,25.94]
[1725465158783,25.94,133.38,133.31,3.7502]
[1725465159183,235.51147908,133.43,133.26,25.94]
[1725465159385,0.05347784,133.36,133.33,0.05516953]
[1725465159682,0.0494692,133.36,133.33,0.05723904]
[1725465160185,3.86022527,133.36,133.33,0.05723904]
[1725465161074,3.86022527,133.36,133.34,3.7494]
[1725465161279,3.86022527,133.36,133.33,0.05723904]
[1725465161684,3.86022527,133.36,133.33,3.80703904]
[1725465161881,0.0494692,133.36,133.33,0.05723904]
[1725465163080,3.78783954,133.36,133.33,0.05723904]
[1725465163484,0.0494692,133.36,133.33,0.05723904]
[1725465163683,0.0494692,133.36,133.35,3.7493]
[1725465164483,0.0494692,133.36,133.33,0.05723904]
[1725465164678,3.81025233,133.36,133.33,0.05723904]
[1725465164885,3.7496,133.34,133.33,0.05723904]
[1725465165187,3.7720351,133.34,133.23,28.6326]
[1725465165490,3.7498,133.34,133.3,3.7505]
[1725465165793,21.6,133.4,133.28,25.32215137]
[1725465165983,0.05378737,133.35,133.33,0.04915395]
[1725465166190,0.04829671,133.35,133.33,0.04915395]
[1725465167187,0.04829671,133.35,133.34,3.7496]
[1725465167387,0.04829671,133.35,133.33,0.04915395]
[1725465167589,0.04829671,133.35,133.33,3.79885395]
[1725465167896,0.04829671,133.35,133.33,0.04915395]
[1725465168787,0.04829671,133.35,133.34,3.7496]
[1725465169685,0.04829671,133.35,133.33,0.04915395]
[1725465170091,0.04829671,133.35,133.34,3.7496]
[1725465170589,3.746,133.47,133.44,3.7466]
[1725465170777,3.746,133.47,133.34,43.2]
[1725465170778,3.79275,133.48,133.4,21.6]
[1725465170978,7.0542,133.51,133.41,4.8921]
[1725465171184,7.82709908,133.58,133.41,4.8921]
[1725465171390,0.36494409,133.57,133.47,21.6]
[1725465171590,0.36494409,133.57,133.51,0.04896758]
[1725465171591,0.05266164,133.53,133.51,0.04896758]
[1725465171788,0.05266164,133.53,133.52,3.7443]
[1725465172582,0.05266164,133.53,133.51,0.04896758]
[1725465172990,21.6,133.61,133.51,0.04896758]
[1725465173186,21.6,133.68,133.49,21.6]
[1725465173491,21.6,133.62,133.5,3.81329858]
[1725465173787,15.6,133.62,133.5,3.81329858]
[1725465174187,0.05763255,133.57,133.55,0.05681604]
[1725465174394,3.68407866,133.56,133.55,0.05681604]
[1725465174689,7.42747866,133.56,133.55,0.05681604]
[1725465174886,3.7434,133.56,133.55,0.05681604]
[1725465175187,7.45107534,133.56,133.55,0.05681604]
[1725465175690,3.7448,133.52,133.45,29.52411462]
[1725465175900,3.70767534,133.56,133.45,25.87]
[1725465176084,3.745,133.51,133.45,29.54808585]
[1725465176598,0.05761725,133.49,133.47,0.05239936]
[1725465177195,0.05761725,133.49,133.47,25.92239936]
[1725465177389,26.23477142,133.62,133.49,3.7453]
[1725465177696,0.36477142,133.61,133.47,25.87]
[1725465177998,25.87,133.62,133.47,25.87]
[1725465178190,3.7442,133.54,133.47,25.87]
[1725465178387,0.05422182,133.52,133.49,0.0535599]
[1725465178594,0.05621939,133.52,133.49,0.05573403]
[1725465178792,0.05621939,133.52,133.5,3.7451]
[1725465179297,0.05621939,133.52,133.49,0.05573403]
[1725465179495,0.05621939,133.52,133.5,3.7449]
[1725465179997,3.744,133.54,133.51,3.7448]
[1725465180299,4.6155,133.63,133.5,25.87]
[1725465180595,0.36469002,133.62,133.5,25.87]
[1725465180799,25.87,133.61,133.47,25.87]
[1725465180985,3.7441,133.54,133.5,29.6149]
[1725465181190,3.7441,133.54,133.53,0.05709946]
[1725465181595,3.88695677,133.55,133.45,25.87]
[1725465181796,3.83923889,133.55,133.42,28.2972]
[1725465181987,2.2656,133.54,133.42,28.2972]
[1725465182190,3.746,133.47,133.42,28.2972]
[1725465182597,3.82126001,133.47,133.41,4.8921]
[1725465182793,3.7465,133.45,133.43,0.05164728]
[1725465182999,3.71094388,133.45,133.43,0.05368284]
[1725465183491,0.05154804,133.45,133.43,0.05368284]
[1725465184695,0.05154804,133.45,133.43,3.80048284]
[1725465184999,0.05154804,133.45,133.43,0.05368284]
[1725465185394,3.7468,133.44,133.43,0.05368284]
[1725465185588,0.05154804,133.45,133.43,0.05368284]
[1725465186588,3.7468,133.44,133.43,0.05368284]
[1725465188488,28.2007,133.46,133.35,3.7491]
[1725465188697,28.2007,133.46,133.32,30.7426]
[1725465188900,3.7487,133.38,133.32,30.7426]
[1725465189095,3.7487,133.38,133.34,3.7493]
[1725465189300,3.67725,133.38,133.32,30.7426]
[1725465189503,39.51720296,133.46,133.34,0.05068844]
[1725465189504,0.05457962,133.36,133.34,0.05068844]
[1725465189701,0.05457962,133.36,133.34,0.05736137]
[1725465189702,0.05453618,133.36,133.34,0.05736137]
[1725465190205,25.87,133.39,133.25,25.87]
[1725465190412,2.6649363,133.38,133.25,25.87]
[1725465190699,3.7508,133.3,133.25,25.87]
[1725465191006,25.87,133.37,133.25,25.87]
[1725465191200,0.36516766,133.36,133.25,25.87]
[1725465191398,0.04805054,133.32,133.3,0.05210531]
[1725465191598,3.80480147,133.32,133.3,0.05210531]
[1725465191797,3.7504,133.31,133.23,2.2531]
[1725465192100,25.87,133.35,133.23,2.2531]
[1725465192298,0.36548041,133.34,133.23,2.2531]
[1725465192500,26.23548041,133.34,133.23,2.2531]
[1725465192699,0.36548041,133.33,133.23,2.2531]
[1725465192899,3.7519,133.26,133.23,2.2531]
[1725465193105,7.51468613,133.26,133.23,2.30285712]
[1725465193300,0.04937974,133.26,133.23,6.01326096]
[1725465193504,0.04937974,133.26,133.23,4.68665712]
[1725465193702,0.04937974,133.26,133.23,2.30285712]
[1725465193897,3.80137974,133.26,133.23,2.30285712]
[1725465194093,0.04937974,133.26,133.23,2.30285712]
[1725465194300,25.87,133.37,133.24,25.87]
[1725465194495,2.2995,133.38,133.26,25.87]
[1725465194798,0.36538007,133.37,133.26,25.87]
[1725465194995,2.2995,133.38,133.26,25.87]
[1725465195200,0.36539823,133.37,133.26,25.87]
[1725465195392,0.36539823,133.37,133.25,3.7519]
[1725465195596,0.05635022,133.33,133.3,0.05203153]
[1725465196096,2.2995,133.38,133.23,2.2531]
[1725465196097,25.87,133.34,133.23,2.2531]
[1725465196500,3.7512,133.29,133.25,3.752]
[1725465196905,25.87,133.34,133.23,2.2531]
[1725465197106,3.7511,133.29,133.27,0.05752735]
[1725465197313,3.81567464,133.3,133.27,0.05752735]
[1725465197508,3.7511,133.29,133.27,0.05752735]
[1725465198204,3.7513,133.28,133.27,0.05752735]
[1725465198407,3.81612866,133.3,133.21,25.87]
[1725465198600,25.87,133.34,133.2,3.75131361]
[1725465198800,25.87,133.34,133.23,3.7527]
[1725465198801,3.7517,133.27,133.23,3.7527]
[1725465199006,3.6983014,133.26,133.23,3.7527]
[1725465199403,0.05338908,133.26,133.23,3.80306287]
[1725465199609,0.05338908,133.26,133.23,0.05036287]
[1725465199809,3.7020545,133.31,133.24,25.87]
[1725465200006,2.284,133.36,133.26,25.87]
[1725465200206,3.7499,133.33,133.27,6.12985218]
[1725465200413,368.251,133.4,133.27,2.37]
[1725465200616,3.7503,133.32,133.27,2.37]
[1725465200915,0.05285157,133.31,133.28,0.04971634]
[1725465201121,0.05176421,133.31,133.28,0.05290976]
[1725465201616,3.751,133.29,133.28,0.05290976]
[1725465203204,3.82287568,133.31,133.28,0.05290976]
[1725465204413,3.751,133.29,133.28,0.05290976]
[1725465205514,3.7508,133.3,133.28,0.05290976]
[1725465206212,3.751,133.29,133.28,0.05290976]
[1725465208018,7.51253929,133.29,133.28,0.05290976]
[1725465208515,3.752,133.26,133.22,2.4191]
[1725465208713,3.76153929,133.29,133.22,2.4191]
[1725465208916,2.3935,133.33,133.26,3.7517]
[1725465209108,6.10831502,133.33,133.23,21.62]
[1725465209307,2.3935,133.33,133.23,21.62]
[1725465209511,2.3935,133.33,133.27,3.7514]
[1725465209712,3.80763781,133.29,133.27,0.05429853]
[1725465209911,3.80763781,133.29,133.27,3.80579853]
[1725465210114,0.05663781,133.29,133.27,0.05429853]
[1725465210813,3.7513,133.28,133.27,0.05429853]
[1725465211021,0.05663781,133.29,133.28,3.7513]
[1725465212017,3.82928447,133.32,133.3,3.7506]
[1725465212224,2.3631,133.37,133.3,3.7506]
[1725465212724,6.09152563,133.37,133.31,3.7502]
[1725465212925,2.3631,133.37,133.31,3.7502]
[1725465213222,3.7497,133.34,133.33,0.05245452]
[1725465214217,0.0529883,133.35,133.33,0.05245452]
[1725465214713,3.8024883,133.35,133.33,0.05245452]
[1725465214913,0.0529883,133.35,133.33,0.05245452]
[1725465215316,3.7496,133.34,133.33,0.05245452]
[1725465216619,3.751,133.3,133.26,2.3856]
[1725465217116,7.5295114,133.3,133.27,3.7515]
[1725465217525,7.5795258,133.3,133.27,3.80171876]
[1725465217718,3.751,133.29,133.27,3.80171876]
[1725465218030,3.8285258,133.3,133.27,0.05021876]
[1725465218326,3.7511,133.29,133.27,0.05021876]
[1725465218624,3.7511,133.29,133.27,3.80171876]
[1725465218821,7.5794258,133.3,133.27,3.80171876]
[1725465219024,0.0500144,133.3,133.27,0.05021876]
[1725465219926,0.0500144,133.3,133.29,3.751]
[1725465220821,3.75131322,133.37,133.29,3.80365742]
[1725465221115,238.29837324,133.44,133.3,23.9634]
[1725465221116,230.78537324,133.44,133.3,23.9634]
[1725465221322,3.78537324,133.44,133.33,21.62]
[1725465221524,3.7475,133.42,133.33,21.62]
[1725465221729,0.05109855,133.39,133.36,0.04778173]
[1725465221926,21.62,133.45,133.36,0.04778173]
[1725465222119,3.83457524,133.45,133.36,3.77006556]
[1725465222325,21.62,133.47,133.35,21.62]
[1725465222626,10.1805,133.51,133.39,21.62]
[1725465222627,3.79781972,133.46,133.39,21.62]
[1725465222822,21.62,133.52,133.4,2.7254]
[1725465223026,0.05177319,133.47,133.45,0.05411108]
[1725465223330,3.82482378,133.46,133.45,0.05411108]
[1725465223917,3.82482378,133.46,133.45,3.80061108]
[1725465224120,3.82482378,133.46,133.45,0.05411108]
[1725465224422,0.05247761,133.47,133.45,0.05411108]
[1725465224622,3.87467599,133.47,133.45,0.05411108]
[1725465224827,0.05247761,133.47,133.45,0.05411108]
[1725465225021,0.05247761,133.47,133.46,3.7462]
[1725465225720,21.62,133.57,133.53,3.7442]
[1725465226126,25.89,133.6,133.53,3.7442]
[1725465226421,0.36501448,133.59,133.53,3.7442]
[1725465226620,3.72863568,133.59,133.53,3.7442]
[1725465226825,0.04967727,133.57,133.55,0.04926947]
[1725465227024,0.05496463,133.57,133.55,0.05450394]
[1725465228726,0.05496463,133.57,133.56,3.7434]
[1725465229832,340.0,133.7,133.55,0.05450394]
[1725465229833,25.89,133.67,133.55,0.05450394]
[1725465230025,25.89,133.67,133.54,3.73454708]
[1725465230225,0.36457434,133.66,133.53,25.89]
[1725465230426,4.14632304,133.66,133.53,25.89]
[1725465230628,25.89,133.64,133.51,25.89]
[1725465230932,0.05730061,133.59,133.58,3.7428]
[1725465231235,0.04717516,133.6,133.57,0.05581067]
[1725465231428,0.04792514,133.6,133.57,0.05320751]
[1725465231934,0.04792514,133.6,133.59,3.7426]
[1725465232328,227.0,133.77,133.59,25.89]
[1725465232530,227.0,133.77,133.62,25.89]
[1725465232531,25.89,133.75,133.62,25.89]
[1725465232730,29.70383154,133.75,133.62,25.89]
[1725465232929,29.70383154,133.75,133.7,3.7393]
[1725465233126,29.70383154,133.75,133.62,25.89]
[1725465233430,0.05279773,133.7,133.68,3.74]
[1725465233728,0.05510338,133.7,133.68,0.0482529]
[1725465234123,25.94510338,133.7,133.6,1.4158]
[1725465234322,1.80794936,133.69,133.6,1.4158]
[1725465234521,1.4438,133.69,133.6,1.4158]
[1725465234729,25.89,133.73,133.6,27.3058]
[1725465234931,0.36375921,133.72,133.6,27.3058]
[1725465235235,0.05014309,133.67,133.65,0.05320548]
[1725465235436,0.04905434,133.67,133.65,0.05320548]
[1725465235627,0.04905434,133.67,133.65,3.79410548]
[1725465236035,3.71335074,133.67,133.65,3.79410548]
[1725465236333,0.04905434,133.67,133.65,3.79410548]
[1725465236727,3.84433877,133.67,133.65,0.05320548]
[1725465237034,0.04905434,133.67,133.65,0.05320548]
[1725465237834,0.04905434,133.67,133.66,3.7406]
[1725465238421,0.04905434,133.67,133.65,0.05320548]
[1725465240227,0.04905434,133.67,133.66,3.7406]
[1725465241626,0.04905434,133.67,133.65,0.05320548]
[1725465242730,0.04905434,133.67,133.66,3.7406]
[1725465243135,227.0,133.77,133.65,0.05320548]
[1725465243333,3.70884465,133.71,133.64,1.317]
[1725465243540,27.2931,133.78,133.64,1.317]
[1725465243838,3.7385,133.74,133.64,1.317]
[1725465244030,3.8122849,133.74,133.64,1.317]
[1725465244338,0.05034789,133.7,133.69,3.7398]
[1725465244536,0.05468333,133.71,133.68,0.04965212]
[1725465244735,0.05283129,133.71,133.68,0.05492964]
[1725465244931,0.05283129,133.71,133.7,3.7395]
[1725465246037,0.05283129,133.71,133.68,0.05492964]
[1725465247028,3.79223129,133.71,133.68,0.05492964]
[1725465247233,0.05283129,133.71,133.68,0.05492964]
[1725465247538,0.05283129,133.71,133.68,3.79492964]
[1725465247738,25.94283129,133.71,133.6,2.8059]
[1725465247932,3.7402,133.68,133.64,3.7412]
[1725465248430,3.69332635,133.72,133.63,25.89]
[1725465248738,25.89,133.78,133.65,25.89]
[1725465249042,0.04926664,133.73,133.72,3.7389]
[1725465249335,1.416,133.79,133.71,0.05248225]
[1725465249336,3.8152691,133.74,133.71,0.05248225]
[1725465249639,0.048183,133.74,133.73,3.7386]
[1725465250029,3.75516036,133.74,133.71,0.05093409]
[1725465250234,0.048183,133.74,133.72,3.7387]
[1725465250543,3.84922394,133.74,133.71,0.05093409]
[1725465250744,0.048183,133.74,133.71,0.05093409]
[1725465251138,3.72700198,133.73,133.71,0.05093409]
[1725465251437,0.048183,133.74,133.72,3.7387]
[1725465251837,3.66829431,133.73,133.72,3.7387]
[1725465252536,0.048183,133.74,133.73,3.7386]
[1725465253442,3.78967065,133.81,133.72,25.89]
[1725465253637,7.4692,133.88,133.73,1.3383]
[1725465253638,1.3672,133.84,133.73,1.3383]
[1725465253839,1.3672,133.84,133.76,3.7375]
[1725465253840,0.36296694,133.83,133.76,3.7375]
[1725465254144,0.36296694,133.83,133.75,25.89]
[1725465254365,25.89,134.01,133.82,3.7359]
[1725465254366,3.66005983,133.87,133.82,3.7359]
[1725465254641,0.36275327,133.92,133.83,27.2283]
[1725465254842,0.04836591,133.86,133.84,1.3814]
[1725465255041,25.89,133.95,133.87,3.7347]
[1725465255239,0.0510819,133.92,133.9,0.05540392]
[1725465255550,7.58916873,133.92,133.9,0.05540392]
[1725465255848,0.0510819,133.92,133.9,0.05540392]
[1725465257134,0.0510819,133.92,133.53,7.94723698]
[1725465257135,0.0510819,133.92,133.78,25.89]
[1725465257442,3.77524308,133.93,133.81,25.89]
[1725465257645,3.7337,133.91,133.81,25.89]
[1725465257839,7.46175379,133.91,133.81,25.89]
[1725465258045,3.72805379,133.91,133.81,25.89]
[1725465258245,0.0502419,133.87,133.85,0.04836437]
[1725465258444,0.05397893,133.87,133.85,0.04793102]
[1725465258750,0.05397893,133.87,133.85,3.78303102]
[1725465259136,3.7381397,133.96,133.86,25.89]
[1725465259335,2.7237,133.99,133.88,3.7344]
[1725465259538,0.36160809,133.98,133.88,3.7344]
[1725465259745,3.7333,133.93,133.88,3.7344]
[1725465259951,3.65184908,133.92,133.89,3.7339]
[1725465260138,3.65184908,133.92,133.89,0.05497689]
[1725465260139,0.05477369,133.92,133.89,0.05497689]
[1725465260848,3.76288659,133.97,133.89,0.05497689]
[1725465261041,1.3672,133.99,133.88,25.89]
[1725465261844,0.03206123,133.95,133.92,0.05491012]
[1725465262041,3.71277242,133.95,133.92,0.05491012]
[1725465262649,0.03206123,133.95,133.92,0.05491012]
[1725465262842,3.733,133.94,133.92,0.05491012]
[1725465263242,3.70007258,133.95,133.92,0.05491012]
[1725465263639,3.81380607,133.95,133.92,0.05491012]
[1725465263849,3.7331,133.93,133.92,0.05491012]
[1725465264050,3.6924858,133.93,133.92,0.05491012]
[1725465264348,3.7331,133.93,133.92,0.05491012]
[1725465265444,3.84443051,133.95,133.92,0.05491012]
[1725465265846,3.733,133.94,133.92,0.05491012]
[1725465266343,7.57703051,133.95,133.92,0.05491012]
[1725465266540,0.03206123,133.95,133.92,0.05491012]
[1725465267845,25.92206123,133.95,133.92,0.05491012]
[1725465268046,3.7331,133.93,133.92,0.05491012]
[1725465268844,3.7329,133.94,133.92,0.05491012]
[1725465269046,1.40606123,133.95,133.92,0.05491012]
[1725465269641,3.7331,133.93,133.92,0.05491012]
[1725465270147,0.03206123,133.95,133.92,0.05491012]
[1725465271447,0.03206123,133.95,133.93,3.7329]
[1725465271757,0.03206123,133.95,133.93,1.4413]
[1725465271949,1.3403,134.02,133.93,1.4413]
[1725465272145,3.7313,134.0,133.95,3.7323]
[1725465272367,1.3403,134.02,133.93,2.7607]
[1725465272553,3.7321,133.97,133.93,2.7607]
[1725465272745,3.65782592,133.96,133.93,1.4413]
[1725465272950,21.51,134.01,133.93,1.4930741]
[1725465273547,3.7316,133.99,133.94,3.7326]
[1725465273746,21.51,134.01,133.95,0.04902573]
[1725465273952,1.3403,134.02,133.95,0.04902573]
[1725465275249,3.7321,133.97,133.95,0.04902573]
[1725465275448,3.72526323,133.97,133.95,0.04902573]
[1725465275656,1.3403,134.02,133.95,0.04902573]
[1725465276054,3.7322,133.96,133.95,0.04902573]
[1725465276253,3.72619314,133.96,133.95,0.04902573]
[1725465276459,1.3403,134.02,133.95,0.04902573]
[1725465277154,3.7322,133.96,133.95,0.04902573]
[1725465277354,7.4580197,133.96,133.95,0.04902573]
[1725465277960,3.7258197,133.96,133.87,1.3194]
[1725465278160,25.81,133.96,133.87,2.6801]
[1725465278357,29.63776906,133.96,133.87,2.6801]
[1725465278663,3.82776906,133.96,133.87,2.6801]
[1725465278856,25.81,133.97,133.87,2.6801]
[1725465279055,3.7334,133.92,133.91,0.05118411]
[1725465279262,0.04902573,133.93,133.91,0.05118411]
[1725465279761,3.7333,133.92,133.91,0.05118411]
[1725465279959,0.04902573,133.93,133.91,0.05118411]
[1725465280954,3.7333,133.92,133.91,0.05118411]
[1725465281356,0.04902573,133.93,133.82,1.4196]
[1725465281560,18.75734207,133.97,133.82,1.4196]
[1725465281561,25.81,133.92,133.82,1.4196]
[1725465281762,25.81,133.93,133.82,1.4196]
[1725465281951,3.7342,133.89,133.82,1.4196]
[1725465282351,0.05527835,133.87,133.84,0.0517448]
[1725465282960,3.79017835,133.87,133.84,0.0517448]
[1725465283467,0.05527835,133.87,133.84,3.7871448]
[1725465283763,0.05527835,133.87,133.84,0.0517448]
[1725465284158,3.79007835,133.87,133.84,0.0517448]
[1725465284669,0.05527835,133.87,133.84,3.7870448]
[1725465284862,25.86527835,133.87,133.7,105.40704745]
[1725465285161,29.51011956,133.87,133.78,1.3068]
[1725465285358,3.7362,133.82,133.78,1.3068]
[1725465285552,3.70011956,133.87,133.78,1.3068]
[1725465285763,0.05558407,133.84,133.81,25.81]
[1725465285962,24.72592612,134.05,133.82,2.8021]
[1725465285963,3.71065693,133.88,133.82,2.8021]
[1725465286264,25.81,133.95,133.82,2.8021]
[1725465286654,0.36176564,133.94,133.82,2.8021]
[1725465286965,37.0014,134.03,133.82,2.8021]
[1725465286966,3.73682254,134.08,133.87,0.05499549]
[1725465287163,25.81,134.02,133.89,25.81]
[1725465287352,0.36128563,134.01,133.9,5.27297114]